[Event "Titled Tuesday Blitz January 25 2022"]
[White "Seul, Georg"]
[Black "Eljanov, Pavel"]
[WhiteFideId "4601653"]
[BlackFideId "14102951"]
[WhiteElo "2271"]
[BlackElo "2601"]
[Result "0-1"]
[Round "07"]
[TimeControl "180+1"]
[Date "2022.01.26"]
[WhiteClock "0:02:39"]
[BlackClock "0:02:39"]

1. e4 {[%clk 0:03:00]}  c6 {[%clk 0:02:59]} 2. d4 {[%clk 0:03:00]}  d5 {[%clk 0:03:00]} 3. e5 {[%clk 0:03:00]}  Bf5 {[%clk 0:03:00]} 4. h4 {[%clk 0:02:59]}  h5 {[%clk 0:02:59]} 5. Bd3 {[%clk 0:02:59]}  Bxd3 {[%clk 0:02:58]} 6. Qxd3 {[%clk 0:02:59]}  Qa5+ {[%clk 0:02:58]} 7. Nd2 {[%clk 0:02:58]}  e6 {[%clk 0:02:58]} 8. Ne2 {[%clk 0:02:56]}  c5 {[%clk 0:02:51]} 9. O-O {[%clk 0:02:45]}  Nc6 {[%clk 0:02:47]} 10. Nb3 {[%clk 0:02:39]}  c4 {[%clk 0:02:39]} 0-1


[Site "https://www.chess.com"]

[Event "Titled Tuesday Blitz January 25 2022"]
[White "Shevchenko, Kirill"]
[Black "Samadov, Read"]
[WhiteFideId "14129574"]
[BlackFideId "13417444"]
[WhiteElo "2624"]
[BlackElo "2084"]
[Result "1/2-1/2"]
[Round "07"]
[TimeControl "180+1"]
[Date "2022.01.26"]
[WhiteClock "0:00:05"]
[BlackClock "0:00:06"]

1. d4 {[%clk 0:03:00]}  Nf6 {[%clk 0:02:59]} 2. Bg5 {[%clk 0:02:59]}  d5 {[%clk 0:02:59]} 3. e3 {[%clk 0:02:58]}  Bf5 {[%clk 0:02:56]} 4. Nd2 {[%clk 0:02:55]}  e6 {[%clk 0:02:56]} 5. Bd3 {[%clk 0:02:55]}  Bg6 {[%clk 0:02:54]} 6. Ngf3 {[%clk 0:02:53]}  Be7 {[%clk 0:02:52]} 7. Ne5 {[%clk 0:02:50]}  Bxd3 {[%clk 0:02:50]} 8. cxd3 {[%clk 0:02:50]}  Nbd7 {[%clk 0:02:44]} 9. f4 {[%clk 0:02:48]}  O-O {[%clk 0:02:43]} 10. O-O {[%clk 0:02:47]}  c5 {[%clk 0:02:41]} 11. dxc5 {[%clk 0:02:39]}  Nxc5 {[%clk 0:02:40]} 12. Rc1 {[%clk 0:02:31]}  Rc8 {[%clk 0:02:35]} 13. Ndf3 {[%clk 0:02:21]}  Nfd7 {[%clk 0:02:31]} 14. Nxd7 {[%clk 0:02:16]}  Qxd7 {[%clk 0:02:26]} 15. Ne5 {[%clk 0:02:16]}  Qd6 {[%clk 0:02:18]} 16. Bxe7 {[%clk 0:01:41]}  Qxe7 {[%clk 0:02:18]} 17. Qc2 {[%clk 0:01:41]}  f6 {[%clk 0:02:09]} 18. Nf3 {[%clk 0:01:39]}  Qd7 {[%clk 0:02:06]} 19. Nd4 {[%clk 0:01:34]}  Ne4 {[%clk 0:01:58]} 20. Qe2 {[%clk 0:01:33]}  Nd6 {[%clk 0:01:49]} 21. g4 {[%clk 0:01:14]}  Rxc1 {[%clk 0:01:47]} 22. Rxc1 {[%clk 0:01:14]}  Rc8 {[%clk 0:01:47]} 23. Rf1 {[%clk 0:01:14]}  e5 {[%clk 0:01:37]} 24. fxe5 {[%clk 0:01:09]}  fxe5 {[%clk 0:01:38]} 25. Nf5 {[%clk 0:01:08]}  Rf8 {[%clk 0:01:34]} 26. Nxd6 {[%clk 0:00:54]}  Rxf1+ {[%clk 0:01:32]} 27. Qxf1 {[%clk 0:00:54]}  Qxd6 {[%clk 0:01:30]} 28. Qf5 {[%clk 0:00:55]}  b6 {[%clk 0:01:14]} 29. Qc8+ {[%clk 0:00:47]}  Kf7 {[%clk 0:01:13]} 30. Qb7+ {[%clk 0:00:42]}  Kg6 {[%clk 0:01:13]} 31. Qc8 {[%clk 0:00:42]}  Kf7 {[%clk 0:01:06]} 32. Qf5+ {[%clk 0:00:40]}  Kg8 {[%clk 0:01:05]} 33. Kg2 {[%clk 0:00:40]}  a5 {[%clk 0:00:56]} 34. h4 {[%clk 0:00:35]}  g6 {[%clk 0:00:48]} 35. Qc8+ {[%clk 0:00:34]}  Kg7 {[%clk 0:00:48]} 36. Qb7+ {[%clk 0:00:35]}  Kg8 {[%clk 0:00:48]} 37. Qc8+ {[%clk 0:00:31]}  Kg7 {[%clk 0:00:48]} 38. a3 {[%clk 0:00:30]}  Qe7 {[%clk 0:00:35]} 39. Kh3 {[%clk 0:00:28]}  Qf7 {[%clk 0:00:30]} 40. Kg3 {[%clk 0:00:27]}  e4 {[%clk 0:00:24]} 41. Qc3+ {[%clk 0:00:26]}  Kg8 {[%clk 0:00:24]} 42. dxe4 {[%clk 0:00:08]}  dxe4 {[%clk 0:00:23]} 43. Qc8+ {[%clk 0:00:09]}  Kg7 {[%clk 0:00:24]} 44. Qc3+ {[%clk 0:00:09]}  Kg8 {[%clk 0:00:24]} 45. g5 {[%clk 0:00:03]}  Qf3+ {[%clk 0:00:23]} 46. Kh2 {[%clk 0:00:04]}  Qf2+ {[%clk 0:00:21]} 47. Kh3 {[%clk 0:00:04]}  Qf3+ {[%clk 0:00:19]} 48. Kh2 {[%clk 0:00:05]}  Qf2+ {[%clk 0:00:06]} 49. Kh3 {[%clk 0:00:05]}  Qf3+ {[%clk 0:00:06]} 50. Kh2 {[%clk 0:00:05]} 1/2-1/2


[Site "https://www.chess.com"]

[Event "Titled Tuesday Blitz January 25 2022"]
[White "Sjugirov, Sanan"]
[Black "Dastan, Muhammed Batuhan"]
[WhiteFideId "4189302"]
[BlackFideId "6300014"]
[WhiteElo "2602"]
[BlackElo "2410"]
[Result "1-0"]
[Round "07"]
[TimeControl "180+1"]
[Date "2022.01.26"]
[WhiteClock "0:00:06"]
[BlackClock "0:00:15"]

1. e4 {[%clk 0:03:00]}  c5 {[%clk 0:02:58]} 2. Nf3 {[%clk 0:03:00]}  d6 {[%clk 0:02:58]} 3. Bb5+ {[%clk 0:03:00]}  Nd7 {[%clk 0:02:58]} 4. d4 {[%clk 0:03:00]}  Nf6 {[%clk 0:02:58]} 5. O-O {[%clk 0:02:53]}  cxd4 {[%clk 0:02:58]} 6. Qxd4 {[%clk 0:02:53]}  a6 {[%clk 0:02:58]} 7. Bxd7+ {[%clk 0:02:52]}  Bxd7 {[%clk 0:02:59]} 8. Bg5 {[%clk 0:02:44]}  e5 {[%clk 0:02:55]} 9. Qd3 {[%clk 0:02:43]}  Rc8 {[%clk 0:02:50]} 10. Nc3 {[%clk 0:02:17]}  Be6 {[%clk 0:02:07]} 11. Bxf6 {[%clk 0:02:13]}  Qxf6 {[%clk 0:02:05]} 12. Nd5 {[%clk 0:02:13]}  Qd8 {[%clk 0:01:48]} 13. c4 {[%clk 0:02:09]}  Be7 {[%clk 0:01:47]} 14. Rfd1 {[%clk 0:02:08]}  O-O {[%clk 0:01:41]} 15. b3 {[%clk 0:02:08]}  Rc6 {[%clk 0:01:33]} 16. Qe2 {[%clk 0:01:52]}  f5 {[%clk 0:01:25]} 17. exf5 {[%clk 0:01:52]}  Bxf5 {[%clk 0:01:20]} 18. Ne3 {[%clk 0:01:46]}  Be6 {[%clk 0:01:12]} 19. Nxe5 {[%clk 0:01:38]}  Rc5 {[%clk 0:01:13]} 20. Nf3 {[%clk 0:01:35]}  Bf6 {[%clk 0:01:13]} 21. Rac1 {[%clk 0:01:31]}  Re8 {[%clk 0:01:09]} 22. Qd3 {[%clk 0:01:24]}  b5 {[%clk 0:00:57]} 23. cxb5 {[%clk 0:01:21]}  axb5 {[%clk 0:00:50]} 24. Rxc5 {[%clk 0:01:16]}  dxc5 {[%clk 0:00:51]} 25. Qxb5 {[%clk 0:01:16]}  Qe7 {[%clk 0:00:50]} 26. h3 {[%clk 0:01:09]}  Ra8 {[%clk 0:00:42]} 27. Rd2 {[%clk 0:01:05]}  h6 {[%clk 0:00:40]} 28. Qc6 {[%clk 0:01:01]}  Ra7 {[%clk 0:00:37]} 29. Nd5 {[%clk 0:00:59]}  Bxd5 {[%clk 0:00:32]} 30. Qxd5+ {[%clk 0:00:59]}  Kh8 {[%clk 0:00:32]} 31. Qf5 {[%clk 0:00:47]}  Rc7 {[%clk 0:00:24]} 32. Qf4 {[%clk 0:00:40]}  Ra7 {[%clk 0:00:19]} 33. g3 {[%clk 0:00:34]}  Kh7 {[%clk 0:00:19]} 34. Kg2 {[%clk 0:00:34]}  Kh8 {[%clk 0:00:20]} 35. h4 {[%clk 0:00:34]}  Kh7 {[%clk 0:00:20]} 36. Rc2 {[%clk 0:00:31]}  Kh8 {[%clk 0:00:20]} 37. a4 {[%clk 0:00:29]}  Rb7 {[%clk 0:00:20]} 38. Qc4 {[%clk 0:00:27]}  Rb4 {[%clk 0:00:20]} 39. Qxc5 {[%clk 0:00:27]}  Qxc5 {[%clk 0:00:21]} 40. Rxc5 {[%clk 0:00:27]}  Rxb3 {[%clk 0:00:22]} 41. Rc4 {[%clk 0:00:24]}  Ra3 {[%clk 0:00:22]} 42. g4 {[%clk 0:00:23]}  Kg8 {[%clk 0:00:22]} 43. g5 {[%clk 0:00:23]}  hxg5 {[%clk 0:00:23]} 44. hxg5 {[%clk 0:00:23]}  Bb2 {[%clk 0:00:24]} 45. g6 {[%clk 0:00:20]}  Kf8 {[%clk 0:00:24]} 46. Re4 {[%clk 0:00:09]}  Bf6 {[%clk 0:00:23]} 47. Nh2 {[%clk 0:00:09]}  Ra2 {[%clk 0:00:22]} 48. Ng4 {[%clk 0:00:09]}  Bc3 {[%clk 0:00:19]} 49. Ne3 {[%clk 0:00:07]}  Ra1 {[%clk 0:00:16]} 50. Nd5 {[%clk 0:00:07]}  Bb2 {[%clk 0:00:15]} 51. Nc7 {[%clk 0:00:06]} 1-0


[Site "https://www.chess.com"]

[Event "Titled Tuesday Blitz January 25 2022"]
[White "Suarez Uriel, Adrian"]
[Black "Golubka, Petro"]
[WhiteFideId "22230874"]
[BlackFideId "14114224"]
[WhiteElo "2316"]
[BlackElo "2392"]
[Result "1/2-1/2"]
[Round "07"]
[TimeControl "180+1"]
[Date "2022.01.26"]
[WhiteClock "0:01:03"]
[BlackClock "0:00:14"]

1. e4 {[%clk 0:03:00]}  c5 {[%clk 0:02:50]} 2. Ne2 {[%clk 0:03:00]}  Na6 {[%clk 0:02:49]} 3. g3 {[%clk 0:02:57]}  h5 {[%clk 0:02:47]} 4. h3 {[%clk 0:02:57]}  h4 {[%clk 0:02:46]} 5. g4 {[%clk 0:02:57]}  e5 {[%clk 0:02:46]} 6. Bg2 {[%clk 0:02:54]}  d6 {[%clk 0:02:46]} 7. O-O {[%clk 0:02:54]}  Be7 {[%clk 0:02:47]} 8. d3 {[%clk 0:02:54]}  Nf6 {[%clk 0:02:47]} 9. f4 {[%clk 0:02:54]}  exf4 {[%clk 0:02:46]} 10. Nxf4 {[%clk 0:02:50]}  Nc7 {[%clk 0:02:47]} 11. Nc3 {[%clk 0:02:49]}  Ne6 {[%clk 0:02:47]} 12. Nxe6 {[%clk 0:02:42]}  Bxe6 {[%clk 0:02:48]} 13. Be3 {[%clk 0:02:41]}  Nd7 {[%clk 0:02:44]} 14. Qd2 {[%clk 0:02:36]}  Ne5 {[%clk 0:02:43]} 15. Rf2 {[%clk 0:02:36]}  Qd7 {[%clk 0:02:22]} 16. Raf1 {[%clk 0:02:33]}  O-O {[%clk 0:02:12]} 17. Nd5 {[%clk 0:02:27]}  f6 {[%clk 0:01:53]} 18. b3 {[%clk 0:02:13]}  Rac8 {[%clk 0:01:45]} 19. Bf4 {[%clk 0:02:06]}  Bf7 {[%clk 0:01:31]} 20. g5 {[%clk 0:02:03]}  fxg5 {[%clk 0:01:23]} 21. Bxg5 {[%clk 0:02:03]}  Bxd5 {[%clk 0:01:18]} 22. exd5 {[%clk 0:02:03]}  Rxf2 {[%clk 0:01:18]} 23. Rxf2 {[%clk 0:02:02]}  Bxg5 {[%clk 0:01:15]} 24. Qxg5 {[%clk 0:02:01]}  Qd8 {[%clk 0:01:03]} 25. Qf5 {[%clk 0:01:50]}  g6 {[%clk 0:00:54]} 26. Qe6+ {[%clk 0:01:48]}  Kg7 {[%clk 0:00:54]} 27. Be4 {[%clk 0:01:44]}  Qg5+ {[%clk 0:00:33]} 28. Rg2 {[%clk 0:01:44]}  Qe3+ {[%clk 0:00:32]} 29. Kh2 {[%clk 0:01:41]}  Qf4+ {[%clk 0:00:30]} 30. Kh1 {[%clk 0:01:40]}  Rh8 {[%clk 0:00:19]} 31. Qe7+ {[%clk 0:01:09]}  Qf7 {[%clk 0:00:17]} 32. Qxd6 {[%clk 0:01:03]}  Qf1+ {[%clk 0:00:16]} 33. Kh2 {[%clk 0:01:02]}  Qf4+ {[%clk 0:00:15]} 34. Kh1 {[%clk 0:01:02]}  Qf1+ {[%clk 0:00:14]} 35. Kh2 {[%clk 0:01:02]}  Qf4+ {[%clk 0:00:14]} 36. Kh1 {[%clk 0:01:03]}  Qf1+ {[%clk 0:00:14]} 1/2-1/2


[Site "https://www.chess.com"]

[Event "Titled Tuesday Blitz January 25 2022"]
[White "Szpar, Milosz"]
[Black "Karabalis, Harilos"]
[WhiteFideId "1184989"]
[BlackFideId "4621808"]
[WhiteElo "2447"]
[BlackElo "2168"]
[Result "1-0"]
[Round "07"]
[TimeControl "180+1"]
[Date "2022.01.26"]
[WhiteClock "0:01:03"]
[BlackClock "0:01:15"]

1. e4 {[%clk 0:03:00]}  d6 {[%clk 0:02:59]} 2. d4 {[%clk 0:03:00]}  Nf6 {[%clk 0:02:59]} 3. Nc3 {[%clk 0:03:00]}  Nbd7 {[%clk 0:03:00]} 4. g4 {[%clk 0:02:50]}  h6 {[%clk 0:02:58]} 5. h3 {[%clk 0:02:43]}  e5 {[%clk 0:02:57]} 6. Nge2 {[%clk 0:02:42]}  c6 {[%clk 0:02:56]} 7. a4 {[%clk 0:02:42]}  Be7 {[%clk 0:02:54]} 8. Bg2 {[%clk 0:02:41]}  b6 {[%clk 0:02:53]} 9. O-O {[%clk 0:02:37]}  Bb7 {[%clk 0:02:52]} 10. Ng3 {[%clk 0:02:37]}  O-O {[%clk 0:02:31]} 11. Nf5 {[%clk 0:02:36]}  Re8 {[%clk 0:02:31]} 12. Be3 {[%clk 0:02:32]}  Bf8 {[%clk 0:02:30]} 13. Qd2 {[%clk 0:02:31]}  Nh7 {[%clk 0:02:25]} 14. Rad1 {[%clk 0:02:29]}  exd4 {[%clk 0:02:13]} 15. Qxd4 {[%clk 0:02:29]}  d5 {[%clk 0:02:08]} 16. exd5 {[%clk 0:02:28]}  c5 {[%clk 0:02:08]} 17. Qf4 {[%clk 0:02:19]}  Qf6 {[%clk 0:02:05]} 18. Ne4 {[%clk 0:02:07]}  Qe5 {[%clk 0:02:00]} 19. Ned6 {[%clk 0:02:00]}  Reb8 {[%clk 0:01:54]} 20. Nxb7 {[%clk 0:01:36]}  Rxb7 {[%clk 0:01:47]} 21. d6 {[%clk 0:01:35]}  Rab8 {[%clk 0:01:47]} 22. Bxb7 {[%clk 0:01:35]}  Rxb7 {[%clk 0:01:48]} 23. Qxe5 {[%clk 0:01:35]}  Nxe5 {[%clk 0:01:48]} 24. Bf4 {[%clk 0:01:35]}  Nd7 {[%clk 0:01:46]} 25. Rfe1 {[%clk 0:01:33]}  g5 {[%clk 0:01:46]} 26. Bg3 {[%clk 0:01:31]}  Nhf6 {[%clk 0:01:45]} 27. Ne7+ {[%clk 0:01:29]}  Kg7 {[%clk 0:01:45]} 28. Nf5+ {[%clk 0:01:24]}  Kg6 {[%clk 0:01:43]} 29. f3 {[%clk 0:01:21]}  a6 {[%clk 0:01:43]} 30. c4 {[%clk 0:01:14]}  b5 {[%clk 0:01:43]} 31. cxb5 {[%clk 0:01:15]}  axb5 {[%clk 0:01:44]} 32. a5 {[%clk 0:01:16]}  Ra7 {[%clk 0:01:43]} 33. Ra1 {[%clk 0:01:15]}  Ra6 {[%clk 0:01:42]} 34. b4 {[%clk 0:01:10]}  c4 {[%clk 0:01:38]} 35. Rad1 {[%clk 0:01:09]}  h5 {[%clk 0:01:31]} 36. Kf1 {[%clk 0:01:09]}  h4 {[%clk 0:01:28]} 37. Bh2 {[%clk 0:01:09]}  Ra8 {[%clk 0:01:26]} 38. Ke2 {[%clk 0:01:07]}  Ra6 {[%clk 0:01:26]} 39. Kd2 {[%clk 0:01:06]}  Nd5 {[%clk 0:01:23]} 40. Ne7+ {[%clk 0:01:04]}  Kg7 {[%clk 0:01:21]} 41. Nxd5 {[%clk 0:01:04]}  Bxd6 {[%clk 0:01:19]} 42. Bxd6 {[%clk 0:01:04]}  Rxd6 {[%clk 0:01:19]} 43. Kc2 {[%clk 0:01:04]}  Nf6 {[%clk 0:01:15]} 44. Ne3 {[%clk 0:01:03]} 1-0


[Site "https://www.chess.com"]

[Event "Titled Tuesday Blitz January 25 2022"]
[White "Tikhonov, Viacheslav"]
[Black "Steinberg, Nitzan"]
[WhiteFideId "44196407"]
[BlackFideId "2801795"]
[WhiteElo "1773"]
[BlackElo "2440"]
[Result "0-1"]
[Round "07"]
[TimeControl "180+1"]
[Date "2022.01.26"]
[WhiteClock "0:00:13"]
[BlackClock "0:01:31"]

1. d4 {[%clk 0:03:00]}  Nf6 {[%clk 0:02:59]} 2. c4 {[%clk 0:03:01]}  g6 {[%clk 0:02:59]} 3. Nc3 {[%clk 0:03:01]}  Bg7 {[%clk 0:02:59]} 4. e4 {[%clk 0:03:01]}  d6 {[%clk 0:02:59]} 5. h3 {[%clk 0:03:02]}  O-O {[%clk 0:02:52]} 6. Be3 {[%clk 0:03:02]}  Nfd7 {[%clk 0:02:37]} 7. Nf3 {[%clk 0:02:58]}  e5 {[%clk 0:02:37]} 8. d5 {[%clk 0:02:58]}  a5 {[%clk 0:02:37]} 9. Nd2 {[%clk 0:02:55]}  Na6 {[%clk 0:02:37]} 10. g4 {[%clk 0:02:53]}  Kh8 {[%clk 0:02:30]} 11. h4 {[%clk 0:02:53]}  f5 {[%clk 0:02:28]} 12. exf5 {[%clk 0:02:49]}  gxf5 {[%clk 0:02:28]} 13. gxf5 {[%clk 0:02:49]}  Ndc5 {[%clk 0:02:23]} 14. Nde4 {[%clk 0:02:33]}  Bxf5 {[%clk 0:02:21]} 15. Ng3 {[%clk 0:02:15]}  Qd7 {[%clk 0:02:05]} 16. Qd2 {[%clk 0:02:03]}  Nb4 {[%clk 0:02:00]} 17. Nxf5 {[%clk 0:01:38]}  Qxf5 {[%clk 0:02:00]} 18. Bxc5 {[%clk 0:01:10]}  dxc5 {[%clk 0:01:59]} 19. Rc1 {[%clk 0:00:55]}  e4 {[%clk 0:01:51]} 20. Nd1 {[%clk 0:00:48]}  Nd3+ {[%clk 0:01:38]} 21. Bxd3 {[%clk 0:00:47]}  exd3 {[%clk 0:01:39]} 22. Ne3 {[%clk 0:00:47]}  Rae8 {[%clk 0:01:40]} 23. Rd1 {[%clk 0:00:37]}  Bd4 {[%clk 0:01:34]} 24. Rc1 {[%clk 0:00:18]}  Qf3 {[%clk 0:01:31]} 25. Qxd3 {[%clk 0:00:13]}  Bxe3 {[%clk 0:01:31]} 0-1


[Site "https://www.chess.com"]

[Event "Titled Tuesday Blitz January 25 2022"]
[White "Tregubov, Pavel V."]
[Black "Havanecz, Bianka"]
[WhiteFideId "4115341"]
[BlackFideId "704814"]
[WhiteElo "2341"]
[BlackElo "2378"]
[Result "1-0"]
[Round "07"]
[TimeControl "180+1"]
[Date "2022.01.26"]
[WhiteClock "0:02:13"]
[BlackClock "0:00:16"]

1. e4 {[%clk 0:03:00]}  c6 {[%clk 0:02:58]} 2. Nf3 {[%clk 0:03:00]}  d5 {[%clk 0:02:58]} 3. Nc3 {[%clk 0:03:00]}  Bg4 {[%clk 0:02:57]} 4. h3 {[%clk 0:03:00]}  Bxf3 {[%clk 0:02:57]} 5. Qxf3 {[%clk 0:02:59]}  e6 {[%clk 0:02:58]} 6. g3 {[%clk 0:02:59]}  Nf6 {[%clk 0:02:58]} 7. Bg2 {[%clk 0:02:59]}  Be7 {[%clk 0:02:45]} 8. O-O {[%clk 0:02:58]}  O-O {[%clk 0:02:45]} 9. Rd1 {[%clk 0:02:53]}  Nbd7 {[%clk 0:02:25]} 10. d4 {[%clk 0:02:53]}  dxe4 {[%clk 0:02:14]} 11. Nxe4 {[%clk 0:02:53]}  Nxe4 {[%clk 0:02:15]} 12. Qxe4 {[%clk 0:02:54]}  Nf6 {[%clk 0:02:16]} 13. Qe2 {[%clk 0:02:54]}  Qd7 {[%clk 0:02:09]} 14. c4 {[%clk 0:02:53]}  Rfd8 {[%clk 0:02:03]} 15. Be3 {[%clk 0:02:54]}  Qc7 {[%clk 0:01:51]} 16. Rab1 {[%clk 0:02:53]}  Rd7 {[%clk 0:01:39]} 17. b4 {[%clk 0:02:53]}  Rad8 {[%clk 0:01:36]} 18. a4 {[%clk 0:02:50]}  b6 {[%clk 0:01:32]} 19. Qf3 {[%clk 0:02:42]}  c5 {[%clk 0:01:30]} 20. dxc5 {[%clk 0:02:34]}  bxc5 {[%clk 0:01:23]} 21. Rxd7 {[%clk 0:02:32]}  Qxd7 {[%clk 0:01:16]} 22. b5 {[%clk 0:02:29]}  Qd3 {[%clk 0:01:08]} 23. Rc1 {[%clk 0:02:29]}  h6 {[%clk 0:00:59]} 24. a5 {[%clk 0:02:24]}  Qa3 {[%clk 0:00:49]} 25. a6 {[%clk 0:02:20]}  Nd7 {[%clk 0:00:20]} 26. Qb7 {[%clk 0:02:17]}  Bg5 {[%clk 0:00:16]} 27. Bxg5 {[%clk 0:02:12]}  hxg5 {[%clk 0:00:16]} 28. Rd1 {[%clk 0:02:13]} 1-0


[Site "https://www.chess.com"]

[Event "Titled Tuesday Blitz January 25 2022"]
[White "Triapishko, Alexandr"]
[Black "Artemenko, Oleg"]
[WhiteFideId "14122286"]
[BlackFideId "14201798"]
[WhiteElo "2479"]
[BlackElo "2287"]
[Result "1/2-1/2"]
[Round "07"]
[TimeControl "180+1"]
[Date "2022.01.26"]
[WhiteClock "0:00:08"]
[BlackClock "0:00:13"]

1. d4 {[%clk 0:02:13]}  Nf6 {[%clk 0:02:59]} 2. c4 {[%clk 0:02:14]}  e6 {[%clk 0:02:59]} 3. Nc3 {[%clk 0:02:11]}  Bb4 {[%clk 0:03:00]} 4. Qc2 {[%clk 0:02:12]}  O-O {[%clk 0:02:59]} 5. e4 {[%clk 0:02:06]}  d5 {[%clk 0:02:59]} 6. e5 {[%clk 0:02:07]}  Ne4 {[%clk 0:02:59]} 7. Bd3 {[%clk 0:02:06]}  c5 {[%clk 0:02:59]} 8. Ne2 {[%clk 0:02:04]}  Nc6 {[%clk 0:02:59]} 9. O-O {[%clk 0:01:53]}  h6 {[%clk 0:02:35]} 10. a3 {[%clk 0:01:12]}  cxd4 {[%clk 0:02:18]} 11. cxd5 {[%clk 0:01:06]}  exd5 {[%clk 0:02:09]} 12. Nxd5 {[%clk 0:01:04]}  Qxd5 {[%clk 0:01:33]} 13. Bxe4 {[%clk 0:01:03]}  Qa5 {[%clk 0:01:33]} 14. Bf4 {[%clk 0:00:29]}  Be7 {[%clk 0:01:28]} 15. Bxc6 {[%clk 0:00:30]}  bxc6 {[%clk 0:01:28]} 16. Nxd4 {[%clk 0:00:30]}  Bb7 {[%clk 0:01:19]} 17. Nxc6 {[%clk 0:00:30]}  Qc7 {[%clk 0:01:18]} 18. Nxe7+ {[%clk 0:00:30]}  Qxe7 {[%clk 0:01:19]} 19. Rac1 {[%clk 0:00:26]}  Qe6 {[%clk 0:01:18]} 20. Qc7 {[%clk 0:00:19]}  Qd5 {[%clk 0:01:06]} 21. f3 {[%clk 0:00:17]}  Qd4+ {[%clk 0:01:00]} 22. Kh1 {[%clk 0:00:17]}  Ba6 {[%clk 0:01:01]} 23. Bg3 {[%clk 0:00:04]}  Bxf1 {[%clk 0:01:00]} 24. Rxf1 {[%clk 0:00:05]}  Qxb2 {[%clk 0:01:00]} 25. e6 {[%clk 0:00:05]}  Qb6 {[%clk 0:00:55]} 26. exf7+ {[%clk 0:00:04]}  Rxf7 {[%clk 0:00:55]} 27. Qc4 {[%clk 0:00:05]}  Qg6 {[%clk 0:00:50]} 28. Bf2 {[%clk 0:00:04]}  Kh7 {[%clk 0:00:50]} 29. Rc1 {[%clk 0:00:03]}  Re8 {[%clk 0:00:49]} 30. h3 {[%clk 0:00:03]}  Rfe7 {[%clk 0:00:50]} 31. Qc2 {[%clk 0:00:03]}  a6 {[%clk 0:00:42]} 32. Qxg6+ {[%clk 0:00:03]}  Kxg6 {[%clk 0:00:43]} 33. Kh2 {[%clk 0:00:04]}  Re2 {[%clk 0:00:43]} 34. Kg3 {[%clk 0:00:04]}  h5 {[%clk 0:00:42]} 35. h4 {[%clk 0:00:04]}  Rd2 {[%clk 0:00:39]} 36. Rc6+ {[%clk 0:00:03]}  Kh7 {[%clk 0:00:40]} 37. Rc5 {[%clk 0:00:02]}  Ree2 {[%clk 0:00:37]} 38. Rxh5+ {[%clk 0:00:02]}  Kg8 {[%clk 0:00:37]} 39. Bc5 {[%clk 0:00:03]}  Rxg2+ {[%clk 0:00:37]} 40. Kf4 {[%clk 0:00:03]}  Rd7 {[%clk 0:00:36]} 41. Re5 {[%clk 0:00:03]}  Rc2 {[%clk 0:00:35]} 42. Re8+ {[%clk 0:00:02]}  Kh7 {[%clk 0:00:35]} 43. Be3 {[%clk 0:00:01]}  Rc3 {[%clk 0:00:35]} 44. a4 {[%clk 0:00:01]}  Rf7+ {[%clk 0:00:35]} 45. Kg3 {[%clk 0:00:01]}  Ra3 {[%clk 0:00:33]} 46. Re4 {[%clk 0:00:01]}  Rc7 {[%clk 0:00:32]} 47. Bg5 {[%clk 0:00:01]}  Rcc3 {[%clk 0:00:32]} 48. Rf4 {[%clk 0:00:01]}  Kg6 {[%clk 0:00:30]} 49. Kg4 {[%clk 0:00:01]}  Ra2 {[%clk 0:00:28]} 50. h5+ {[%clk 0:00:02]}  Kh7 {[%clk 0:00:28]} 51. Re4 {[%clk 0:00:02]}  Rca3 {[%clk 0:00:26]} 52. Re7 {[%clk 0:00:02]}  Rxa4+ {[%clk 0:00:27]} 53. f4 {[%clk 0:00:02]}  Kg8 {[%clk 0:00:25]} 54. Re8+ {[%clk 0:00:02]}  Kf7 {[%clk 0:00:26]} 55. Re7+ {[%clk 0:00:03]}  Kf8 {[%clk 0:00:27]} 56. Ra7 {[%clk 0:00:04]}  Rg2+ {[%clk 0:00:24]} 57. Kf5 {[%clk 0:00:04]}  Ra5+ {[%clk 0:00:22]} 58. Kg6 {[%clk 0:00:04]}  Re2 {[%clk 0:00:16]} 59. Rf7+ {[%clk 0:00:03]}  Ke8 {[%clk 0:00:15]} 60. Rxg7 {[%clk 0:00:04]}  Rd5 {[%clk 0:00:14]} 61. h6 {[%clk 0:00:04]}  Rd6+ {[%clk 0:00:15]} 62. Kh5 {[%clk 0:00:03]}  Rh2+ {[%clk 0:00:14]} 63. Kg4 {[%clk 0:00:03]}  Rdxh6 {[%clk 0:00:14]} 64. Bxh6 {[%clk 0:00:04]}  Rxh6 {[%clk 0:00:15]} 65. Kg5 {[%clk 0:00:03]}  Rc6 {[%clk 0:00:15]} 66. Ra7 {[%clk 0:00:04]}  Kf8 {[%clk 0:00:14]} 67. f5 {[%clk 0:00:05]}  Rb6 {[%clk 0:00:14]} 68. Kf4 {[%clk 0:00:04]}  Rc6 {[%clk 0:00:13]} 69. Ke5 {[%clk 0:00:05]}  Rb6 {[%clk 0:00:14]} 70. Rd7 {[%clk 0:00:04]}  Rc6 {[%clk 0:00:14]} 71. Kd5 {[%clk 0:00:03]}  Rb6 {[%clk 0:00:13]} 72. Rh7 {[%clk 0:00:02]}  Rf6 {[%clk 0:00:13]} 73. Ke5 {[%clk 0:00:02]}  Rb6 {[%clk 0:00:13]} 74. Rd7 {[%clk 0:00:03]}  Rc6 {[%clk 0:00:13]} 75. Rb7 {[%clk 0:00:03]}  Rh6 {[%clk 0:00:12]} 76. f6 {[%clk 0:00:02]}  Rh1 {[%clk 0:00:12]} 77. Rb8+ {[%clk 0:00:03]}  Kf7 {[%clk 0:00:12]} 78. Rb7+ {[%clk 0:00:04]}  Kf8 {[%clk 0:00:12]} 79. Ra7 {[%clk 0:00:05]}  Re1+ {[%clk 0:00:12]} 80. Kf5 {[%clk 0:00:05]}  Rf1+ {[%clk 0:00:12]} 81. Kg5 {[%clk 0:00:06]}  Rg1+ {[%clk 0:00:13]} 82. Kf5 {[%clk 0:00:07]}  Rf1+ {[%clk 0:00:13]} 83. Kg6 {[%clk 0:00:08]}  Rg1+ {[%clk 0:00:13]} 84. Kf5 {[%clk 0:00:08]}  Rf1+ {[%clk 0:00:13]} 1/2-1/2


[Site "https://www.chess.com"]